[Event "Azerbaijan Men Championship 2024"]
[Site "Baku"]
[Date "2024.04.11"]
[Round "1.6"]
[White "Sevdimaliyev, Urfan"]
[Black "Samadov, Read"]
[Result "0-1"]
[ECO "B90"]
[WhiteElo "2320"]
[BlackElo "2502"]
[Annotator "TA"]
[PlyCount "54"]
[EventDate "2024.04.11"]
[EventType "swiss"]
[EventCountry "AZE"]
[SourceTitle "playchess.com"]
[Source "ChessBase"]
[SourceQuality "1"]
[TimeControl "40/5400+30:1800+30"]

{[%evp 17,54,14,14,0,8,20,52,66,60,52,44,47,51,59,118,122,87,55,67,-56,-43,-54,-54,-51,-33,-33,-36,-43,-35,-36,-36,-26,-28,-214,-209,-464,-443,-1653,-856]} 1. e4 {[%emt 0:00:04]} c5 {[%emt 0:00:06]} 2. Nf3 {[%emt 0:00:07]} d6 {[%emt 0:00:06]} 3. d4 {[%emt 0:00:06]} cxd4 {[%emt 0:00:06]} 4. Nxd4 {[%emt 0:00:04]} Nf6 {[%emt 0:00:07]} 5. Nc3 {[%emt 0:00:05]} a6 {[%emt 0:00:06]} 6. Be3 {[%emt 0:00:13]} e5 {[%emt 0:00:29]} 7. Nf3 {[%emt 0:00:22]} Be7 {[%emt 0:00:48]} 8. Bc4 {[%emt 0:00:29]} O-O {[%emt 0:01:15]} 9. O-O {[%emt 0:00:38]} Nc6 {[%emt 0:01:46][%cal Bb8c6,Bc6a5,Ba5c4,Bc4b6][%mdl 32]} 10. Bg5 {[%emt 0:04:41]} Na5 {[%emt 0:09:01]} 11. Bxf6 {[%emt 0:12:19]} Nxc4 {[%emt 0:12:25]} 12. Bxe7 {[%emt 0:00:38] White is slightly better.} Qxe7 {[%emt 0:00:05]} 13. Nd5 {[%emt 0:13:15]} Qd8 {[%emt 0:02:39]} 14. Qd3 {[%emt 0:08:31]} Nb6 {[%emt 0:23:31]} 15. Ne3 {[%emt 0:11:06] Excellent horsemanship.} Qe7 {[%emt 0:12:32]} (15... Na4 $14) 16. Rfd1 $16 {[%emt 0:06:44]} Rd8 {[%emt 0:01:50]} 17. c4 {[%emt 0:15:37][%cal Oc4c5] And now c5! would win.} (17. Qb3 {is more complex.} Nd7 18. Nf5 Qf8 19. Rxd6 Nc5 20. Rxd8 Qxd8 21. Qc4) 17... Be6 {[%emt 0:02:02]} 18. Qb3 {[%emt 0:03:24] [#] Repels Na4} (18. b3 $14) 18... Nxc4 $1 $15 {[%emt 0:04:24]} 19. Nxc4 {[%emt 0:03:01] Threatens to win with Qd3.} b5 {[%emt 0:01:34]} 20. Nfd2 {[%emt 0:03:01][%cal Oa1c1]} bxc4 {[%emt 0:04:49]} (20... Rac8 $5) 21. Nxc4 {[%emt 0:01:50]} Rac8 {[%emt 0:02:41]} 22. Rac1 {[%emt 0:00:32]} d5 {[%emt 0:06:58]} 23. exd5 {[%emt 0:07:02]} Bxd5 {[%emt 0:01:39]} 24. Qa4 {[%emt 0:02:20]} Qh4 {[%emt 0:03:35]} 25. b3 $2 {[%emt 0:04:17] [#]} (25. h3 $11 {and White stays safe.}) 25... Bxg2 $1 $19 {[%emt 0:02:06]} 26. Rxd8+ {[%emt 0:00:49]} (26. Ne3 Qxa4 27. Rxd8+ Rxd8 28. bxa4) 26... Qxd8 {[%emt 0:00:35]} 27. Qxa6 {[%emt 0:02:07]} (27. Kxg2 $142 Qg5+ 28. Kf3 Qxc1 29. Qa5) 27... Bf3 {[%emt 0:01:26] Weighted Error Value: White=0.85/Black=0.09 (flawless) .  Loses game:     	White=1     	---        Mistake:       	White=3     	Black=1      Inaccurate:     	White=1     	Black=2      OK:         	White=8     	Black=4      Best:        	---       	Black=1      Strong:       	---       	Black=1      Brilliant:      	---       	Black=1} 0-1

[Event "Azerbaijan Men Championship 2024"]
[Site "Baku"]
[Date "2024.04.11"]
[Round "1.7"]
[White "Sadikhov, Ulvi"]
[Black "Rustamov, Rustam"]
[Result "0-1"]
[ECO "A00"]
[WhiteElo "2497"]
[BlackElo "2261"]
[Annotator "TA"]
[PlyCount "116"]
[EventDate "2024.04.11"]
[EventType "swiss"]
[EventCountry "AZE"]
[SourceTitle "playchess.com"]
[Source "ChessBase"]
[SourceQuality "1"]
[TimeControl "40/5400+30:1800+30"]

{[%evp 37,116,-135,-72,-86,-79,-96,-60,-68,-75,-98,0,-191,-178,-196,-185,-195,-191,-175,-185,-197,-197,-179,-164,-158,-103,-196,-127,-113,-33,-29,0,-22,-6,0,0,0,0,0,0,0,11,7,237,0,0,0,0,0,0,0,1657,-64,0,0,0,-7,-8,-27,0,-59,-52,-138,-133,-159,-159,-333,-201,-393,-386,-340,-212,-476,-479,-472,-391,-449,-439,-421,-375,-382,-339]} 1. g3 {[%emt 0:00:04]} d5 {[%emt 0:00:39]} 2. Bg2 {[%emt 0:00:06]} c6 {[%emt 0:00:46]} 3. d3 {[%emt 0:02:21]} Bf5 {[%emt 0:01:07]} 4. Nd2 {[%emt 0:00:33]} Nf6 {[%emt 0:03:50]} 5. e4 {[%emt 0:00:21]} Bg4 {[%emt 0:04:53]} 6. f3 {[%emt 0:02:04]} Bc8 {[%emt 0:04:44]} 7. e5 {[%emt 0:02:44]} Ng8 {[%emt 0:00:06]} 8. f4 {[%emt 0:01:17]} e6 {[%emt 0:00:38]} 9. Ne2 {[%emt 0:01:55]} Ne7 {[%emt 0:03:49]} 10. O-O {[%emt 0:02:34]} Qb6+ {[%emt 0:05:25]} 11. d4 {[%emt 0:09:33]} Nf5 {[%emt 0:00:55]} 12. Nf3 {[%emt 0:00:21]} h5 {[%emt 0:01:22]} 13. c4 {[%emt 0:10:22]} dxc4 {[%emt 0:05:14]} 14. Nc3 {[%emt 0:14:29]} Na6 {[%emt 0:01:41]} 15. Qe2 {[%emt 0:02:10]} Nxd4 {[%emt 0:11:39]} 16. Nxd4 {[%emt 0:00:06]} Qxd4+ {[%emt 0:00:06]} 17. Kh1 {[%emt 0:00:17]} Qd3 {[%emt 0:00:19]} 18. Qe1 {[%emt 0:04:30]} Nb4 {[%emt 0:02:08]} 19. Qf2 {[%emt 0:05:57]} Qd8 {[%emt 0:01:56]} (19... h4 $142 20. gxh4 Qh7) 20. Be3 {[%emt 0:04:38]} Nd5 {[%emt 0:04:53]} 21. Rad1 {[%emt 0:04:02]} Qc7 {[%emt 0:02:07]} 22. Ne4 {[%emt 0:08:20]} b6 {[%emt 0:02:01]} 23. Bd4 {[%emt 0:14:23]} Rg8 {[%emt 0:04:57]} ({Better is} 23... Be7 $17) 24. f5 $2 {[%emt 0:01:29]} (24. Qf3 $11 {and White has nothing to worry.}) 24... exf5 $19 {[%emt 0:01:24]} 25. Nd6+ {[%emt 0:00:17]} Bxd6 {[%emt 0:01:46]} 26. exd6 {[%emt 0:00:05]} Qxd6 {[%emt 0:00:02]} 27. Be5 {[%emt 0:00:43]} Qe7 {[%emt 0:00:56]} (27... Qxe5 28. Rfe1 $11) 28. Qd4 {[%emt 0:01:47]} Be6 {[%emt 0:03:17]} 29. Qxc4 {[%emt 0:01:17]} Qb7 {[%emt 0:02:37]} 30. Rc1 {[%emt 0:02:24]} Rc8 {[%emt 0:01:24]} ({Black should try} 30... Ne7 31. Qc3 f6 (31... Bxa2 $2 32. b3 $18)) 31. Qe2 {[%emt 0:00:41]} (31. Rfe1 $17 {keeps fighting.}) 31... g6 {[%emt 0:01:42]} (31... h4 $19 32. gxh4 Qd7) 32. Rfe1 {[%emt 0:02:29]} a6 {[%emt 0:02:43]} (32... Qd7 $17 {Hoping for ...Ke7.} 33. b4 f6 (33... Nxb4 34. Bf6 $17) 34. Bxf6 Nxf6) 33. Kg1 $15 {[%emt 0:00:11]} Kd7 {[%emt 0:00:56]} 34. Qd2 {[%emt 0:00:22]} g5 {[%emt 0:00:59]} (34... Rcd8 $5) 35. Bf6 {[%emt 0:00:39]} h4 {[%emt 0:02:05]} 36. Bxg5 {[%emt 0:00:56]} hxg3 {[%emt 0:00:55]} 37. hxg3 {[%emt 0:00:02]} Qa7 {[%emt 0:02:01]} 38. b4 {[%emt 0:00:10]} b5+ {[%emt 0:01:27]} 39. Rc5 {[%emt 0:01:01]} a5 $2 {[%emt 0:03:44] [#]} (39... Rxg5 $11 40. Qxg5 Nxb4) 40. a3 $2 {[%emt 0:00:00]} (40. Kf1 $1 $18 {[%cal Rg2d5] Bxd5 would now be deadly.} Qb7 (40... axb4 $2 41. Bxd5 Qxc5 42. Bxe6+ Kc7 43. Bf4+ Kb6 44. Bxc8 $18) 41. a4) 40... axb4 $11 {[%emt 0:00:00]} 41. axb4 {[%emt 0:02:41]} Ra8 {[%emt 0:11:10]} 42. Bf4 {[%emt 0:11:56]} Qa2 {[%emt 0:04:11]} 43. Qd4 {[%emt 0:09:55]} Rg4 $2 {[%emt 0:01:40][%mdl 8192] [#]} (43... Ra3 $11 44. Rxc6 Kxc6 45. Qc5+ Kb7 46. Qxb5+ Ka7 47. Qc5+ Ka8 48. Qc6+ Ka7 49. Qc5+ Ka8 50. Qc6+ Ka7 51. Qc5+) 44. Kf1 $2 {[%emt 0:04:43]} (44. Bxd5 $1 $18 Qxd5 45. Rxd5+ cxd5 46. Rc1 Rxf4 47. Qxf4) 44... Rag8 {[%emt 0:04:13]} (44... Ra3 $15 45. Rxc6 Rxf4+ (45... Kxc6 $2 46. Rc1+ $18) 46. gxf4 Kxc6 47. Qc5+ Kb7 48. Qxb5+ Kc7 49. Qc5+ Kd7) 45. Re2 $11 {[%emt 0:02:51]} Qb1+ {[%emt 0:05:16]} 46. Kf2 {[%emt 0:00:01]} Rxf4+ $1 {[%emt 0:00:13]} (46... Qxb4 $2 47. Rxd5+ cxd5 48. Qxb4 $18) 47. gxf4 {[%emt 0:00:04]} Rg4 {[%emt 0:00:09]} (47... Qxb4 $2 48. Rxd5+ Bxd5 49. Qxb4 $18) (47... Rxg2+ $5 48. Kxg2 Qxb4 49. Qxb4 Nxb4 $16) 48. Rxd5+ {[%emt 0:02:27]} (48. Rd2 $11) 48... cxd5 $15 {[%emt 0:00:10]} ({Weaker is} 48... Bxd5 49. Qa7+ Kd8 50. Qb8+ Kd7 51. Qe8+ Kc7 52. Re7+ Kb6 53. Qd8+ Ka6 54. Qa5#) 49. Qa7+ {[%emt 0:01:01]} ({White should play} 49. Bf1 $1 $15) 49... Ke8 $17 {[%emt 0:00:36]} 50. Qb8+ {[%emt 0:01:32]} Ke7 {[%emt 0:00:25]} 51. Qc7+ $2 {[%emt 0:00:11]} (51. Qxb5 $17 Qd1 (51... Rxf4+ 52. Bf3 $15) 52. Qc5+ Kf6 53. Qe3) 51... Kf8 {[%emt 0:00:12]} 52. Qb8+ $2 {[%emt 0:00:09]} (52. Qc5+ Kg8 53. Qd4) 52... Kg7 $19 {[%emt 0:00:11]} 53. Qe5+ {[%emt 0:00:19]} Kh7 {[%emt 0:01:42]} 54. Re1 $2 {[%emt 0:01:21]} (54. Qd4) 54... Qc2+ $19 {[%emt 0:02:27]} ({Much less strong is} 54... Qxb4 55. Bf3 Qxf4 56. Rh1+ Kg6 57. Qxf4 Rxf4 58. Ke3) 55. Re2 {[%emt 0:00:00]} Qc4 {[%emt 0:00:41]} 56. Bf3 {[%emt 0:00:52]} Qxf4 {[%emt 0:00:40]} 57. Qxf4 {[%emt 0:00:10]} Rxf4 {[%emt 0:00:05]} 58. Rb2 {[%emt 0:00:04]} Rd4 {[%emt 0:22:16]} 0-1

[Event "Azerbaijan Men Championship 2024"]
[Site "Baku"]
[Date "2024.04.11"]
[Round "1.8"]
[White "Suleymanli, Suleyman"]
[Black "Gadimbayli, Abdulla"]
[Result "1/2-1/2"]
[ECO "A11"]
[WhiteElo "2246"]
[BlackElo "2489"]
[Annotator "TA"]
[PlyCount "121"]
[EventDate "2024.04.11"]
[EventType "swiss"]
[EventCountry "AZE"]
[SourceTitle "playchess.com"]
[Source "ChessBase"]
[SourceQuality "1"]
[TimeControl "40/5400+30:1800+30"]

{[%evp 17,121,-4,14,0,25,-8,-8,-5,-18,-12,10,17,14,12,17,10,12,12,38,59,43,52,60,23,50,21,21,21,27,21,20,18,18,18,18,18,22,22,22,0,22,12,20,19,25,0,13,12,14,4,4,4,12,12,12,12,12,0,0,0,0,0,0,0,5,5,5,10,10,10,10,7,11,4,10,4,4,4,4,0,0,0,10,0,2,0,0,0,0,0,21,12,16,0,0,0,0,0,0,0,0,0,0,0,0,0]} 1. Nf3 {[%emt 0:00:02]} Nf6 {[%emt 0:02:09]} 2. g3 {[%emt 0:00:06]} d5 {[%emt 0:00:45]} 3. Bg2 {[%emt 0:00:02]} c6 {[%emt 0:00:17]} 4. O-O {[%emt 0:01:25]} Bf5 {[%emt 0:01:09]} 5. c4 {[%emt 0:01:15]} e6 {[%emt 0:00:46]} 6. cxd5 {[%emt 0:01:57]} exd5 {[%emt 0:00:40]} 7. d3 {[%emt 0:00:01]} Be7 {[%emt 0:03:35]} 8. Nd4 {[%emt 0:01:31]} Bg6 {[%emt 0:03:11]} 9. Nc3 {[%emt 0:00:07]} O-O {[%emt 0:04:10]} 10. e4 {[%emt 0:20:47]} Nbd7 {[%emt 0:08:04]} 11. Bf4 {[%emt 0:09:11]} Nc5 {[%emt 0:11:32]} 12. Re1 {[%emt 0:02:56]} dxe4 {[%emt 0:14:52]} 13. dxe4 {[%emt 0:00:06]} Qb6 {[%emt 0:00:08][%cal Oa8d8]} 14. Nf5 {[%emt 0:10:22]} Bxf5 {[%emt 0:07:38]} 15. exf5 {[%emt 0:00:20]} Rad8 {[%emt 0:07:02]} 16. Qc2 {[%emt 0:00:47]} Bd6 {[%emt 0:00:30] [#] Threatens to win with ...Bxf4.} 17. Bg5 {[%emt 0:03:15]} h6 {[%emt 0:03:17]} 18. Bxf6 {[%emt 0:05:27]} gxf6 {[%emt 0:00:11]} 19. Rad1 {[%emt 0:08:44]} Be5 {[%emt 0:02:15] Inhibits Rd4.} 20. b3 {[%emt 0:04:16]} Qa5 {[%emt 0:06:26]} 21. Ne4 {[%emt 0:06:51]} (21. Nb1 $5) 21... Nxe4 {[%emt 0:03:29]} 22. Bxe4 {[%emt 0:02:00]} Rd4 {[%emt 0:02:10]} 23. Kg2 {[%emt 0:06:10]} Rfd8 {[%emt 0:01:11]} 24. Rxd4 {[%emt 0:01:36]} Rxd4 {[%emt 0:00:07]} 25. Re2 {[%emt 0:00:00]} Kg7 {[%emt 0:04:22]} 26. Bf3 {[%emt 0:00:10]} Qd8 {[%emt 0:02:40]} 27. Qc1 {[%emt 0:05:35]} Qd7 {[%emt 0:02:14]} 28. Qc2 {[%emt 0:00:06]} a6 {[%emt 0:01:52]} 29. h3 {[%emt 0:03:41]} (29. Be4 {is interesting.} Rd1 30. Qc5 Bd4 31. Qb4) 29... Qd8 {[%emt 0:01:41]} 30. Qc5 {[%emt 0:01:29]} Qd7 {[%emt 0:01:27]} 31. Qc2 {[%emt 0:00:16]} (31. Be4 {is more complex.} Rd1 32. h4 Bd4 33. Qb4) 31... a5 {[%emt 0:02:59] The position is equal.} 32. Qc5 {[%emt 0:02:13]} a4 {[%emt 0:01:17]} 33. Re4 {[%emt 0:01:05]} Rxe4 {[%emt 0:01:53]} 34. Bxe4 $11 {[%emt 0:00:06][%mdl 4096] Endgame. KQB-KQB} a3 {[%emt 0:00:52]} 35. Qxa3 {[%emt 0:01:22]} Qd2 {[%emt 0:00:24] Wards off Qb4} 36. Qc5 {[%emt 0:02:28] Inhibits Bd4.} Qxa2 {[%emt 0:00:13]} 37. Qe3 {[%emt 0:00:29]} Qb2 {[%emt 0:00:25]} 38. Qd3 {[%emt 0:00:41]} Bd4 {[%emt 0:00:48]} 39. Qc2 {[%emt 0:00:16]} Qa1 {[%emt 0:00:11]} 40. Bd3 {[%emt 0:00:00]} Qa5 {[%emt 0:00:00]} 41. Qd1 {[%emt 0:03:36] [#] And now Qg4+ would win.} Ba7 {[%emt 0:07:17]} 42. Qg4+ {[%emt 0:10:58]} Kf8 {[%emt 0:25:21]} 43. Qf4 {[%emt 0:18:15]} Kg7 {[%emt 0:00:00]} 44. Bc4 {[%emt 0:00:00] Wards off Qd5+. aiming for Qg4+.} Qc5 {[%emt 0:00:00]} 45. h4 {[%emt 0:00:00]} b5 {[%emt 0:00:00]} 46. Be2 {[%emt 0:00:00]} Qc2 {[%emt 0:00:00]} 47. Qf3 {[%emt 0:00:00]} Qd2 {[%emt 0:00:00]} 48. Kf1 {[%emt 0:00:00]} Qc1+ {[%emt 0:00:00]} 49. Kg2 {[%emt 0:00:00]} Qd2 {[%emt 0:00:00]} 50. Kf1 {[%emt 0:00:00]} Qc2 {[%emt 0:00:00]} 51. Kg2 {[%emt 0:00:00]} Kf8 {[%emt 0:00:00]} 52. Kf1 {[%emt 0:00:00]} Qc1+ {[%emt 0:02:57]} 53. Kg2 {[%emt 0:00:00]} Qc5 {[%emt 0:00:27]} 54. Bd3 {[%emt 0:00:00]} Qd4 {[%emt 0:00:58] Dodges Be4} 55. Be4 {[%emt 0:00:00]} c5 {[%emt 0:00:51]} 56. Bd5 {[%emt 0:00:56]} c4 {[%emt 0:00:52]} 57. bxc4 {[%emt 0:00:05]} bxc4 {[%emt 0:00:39]} 58. Bxc4 {[%emt 0:00:10]} Qxc4 {[%emt 0:00:04]} 59. Qa8+ {[%emt 0:00:02]} Kg7 {[%emt 0:00:04]} 60. Qxa7 {[%emt 0:00:03]} Qd5+ {[%emt 0:00:04]} 61. Kg1 {[%emt 0:00:05] Weighted Error Value: White=0.06 (flawless) /Black=0.04 (flawless) .  Inaccurate:     	White=3     	Black=1      OK:         	White=16    	Black=24     Best:        	White=1     	Black=2} 1/2-1/2

[Event "Azerbaijan Men Championship 2024"]
[Site "Baku"]
[Date "2024.04.11"]
[Round "1.9"]
[White "Babazada, Khazar"]
[Black "Aslanov, Umid"]
[Result "1-0"]
[ECO "B15"]
[WhiteElo "2474"]
[BlackElo "2239"]
[Annotator "TA"]
[PlyCount "79"]
[EventDate "2024.04.11"]
[EventType "swiss"]
[EventCountry "AZE"]
[SourceTitle "playchess.com"]
[Source "ChessBase"]
[SourceQuality "1"]
[TimeControl "40/5400+30:1800+30"]

{[%evp 15,79,30,44,35,31,32,28,28,26,19,22,15,16,4,25,18,20,32,18,23,35,24,40,8,82,88,70,70,114,115,102,92,148,26,18,20,87,85,91,38,40,27,116,96,123,68,70,68,52,63,98,100,104,70,106,83,90,80,95,110,397,397,716,701,645,667]} 1. e4 {[%emt 0:00:22]} c6 {[%emt 0:00:32]} 2. d4 {[%emt 0:03:07]} d5 {[%emt 0:00:08]} 3. Nc3 {[%emt 0:00:05]} dxe4 {[%emt 0:00:11]} 4. Nxe4 {[%emt 0:00:05]} Nf6 {[%emt 0:00:42]} 5. Nxf6+ {[%emt 0:00:12]} exf6 {[%emt 0:00:07]} 6. c3 {[%emt 0:00:05]} Bd6 {[%emt 0:00:48]} 7. Bd3 {[%emt 0:00:29]} O-O {[%emt 0:00:25]} 8. Ne2 {[%emt 0:00:06]} Re8 {[%emt 0:00:35]} 9. Qc2 {[%emt 0:00:13]} h5 {[%emt 0:01:14][%cal Bh7h5,Bh5h4][%mdl 32]} 10. O-O {[%emt 0:00:16]} h4 {[%emt 0:00:36]} 11. Bd2 {[%emt 0:00:47] White has an edge.} Nd7 {[%emt 0:00:12]} 12. h3 {[%emt 0:00:13]} Nf8 {[%emt 0:00:21]} 13. Rae1 {[%emt 0:02:11]} Bc7 {[%emt 0:01:14]} 14. f4 {[%emt 0:02:49]} Qd6 {[%emt 0:00:41]} 15. c4 {[%emt 0:06:54]} f5 {[%emt 0:00:28]} 16. Bxf5 {[%emt 0:16:49]} Bxf5 {[%emt 0:00:07]} 17. Qxf5 {[%emt 0:00:13]} Re6 {[%emt 0:00:06]} 18. c5 {[%emt 0:04:22]} Qd7 {[%emt 0:04:02]} 19. d5 {[%emt 0:05:25]} Qxd5 {[%emt 0:22:56]} (19... cxd5 $11 20. Nd4 Re7) 20. Qxd5 $16 {[%emt 0:03:22]} cxd5 {[%emt 0:00:10]} 21. Nd4 {[%emt 0:00:50]} Rxe1 {[%emt 0:37:57]} 22. Rxe1 {[%emt 0:00:50]} (22. Bxe1 $6 Ng6 $11) 22... Rc8 {[%emt 0:11:58]} 23. b4 {[%emt 0:01:17]} a5 {[%emt 0:05:02]} 24. Nb5 {[%emt 0:07:57]} (24. Nf5 $16 {Ne7+ is the strong threat.} Kh7 25. Re7 (25. bxa5 Ra8 $16) (25. Nxh4 axb4 26. Nf5 Ne6 $11) 25... axb4 26. Nd6 (26. Bxb4 Bxf4 27. Rxb7 Ra8 $11) (26. Nxh4 b6 $11) (26. Rxf7 Kg6 $11) 26... Bxd6 27. cxd6) 24... axb4 $11 {[%emt 0:03:53]} 25. Re7 {[%emt 0:02:29]} Bb8 {[%emt 0:03:10]} (25... Bd8 $11 26. Rxb7 Rxc5) 26. Rxb7 $16 {[%emt 0:08:23] White is much more active.} (26. Bxb4 $6 Bxf4 27. Kf1 Rb8 $11 (27... Ne6 28. Rxb7 Be3 29. Nd6 $14)) 26... Ne6 {[%emt 0:00:51]} 27. c6 {[%emt 0:01:51]} (27. Bxb4 $6 Bxf4 28. Kf1 d4 $11 (28... Nxc5 29. Na7 $17)) (27. Nd6 $16 Rd8 (27... Rxc5 $2 28. Rxb8+ Kh7 29. f5 $18) (27... Nxc5 28. Nxc8 Nxb7 29. Ne7+ Kf8 30. Nxd5 $16) 28. Bxb4 (28. Nxf7 Rf8 $17)) 27... g6 {[%emt 0:04:36]} (27... Bxf4 $2 28. Na7 $18 (28. Bxb4 $2 Rxc6 29. Nc3 d4 $19) (28. Bxb4 $2 Rxc6 29. Nc3 d4 $19)) (27... Nd8 28. Rxb8 Rxb8 29. c7 $18) 28. Kf1 {[%emt 0:04:45]} (28. Bxb4 Bxf4 29. Nc3 Rxc6 30. Nxd5 Rc1+ 31. Kf2 Be5 $17) 28... Kg7 {[%emt 0:00:37]} ({Avoid the trap} 28... Nd8 $2 29. Rxb8 Rxb8 30. c7 $18) (28... d4 $1 $11 {keeps the balance.}) 29. Rb6 {[%emt 0:04:04]} d4 {[%emt 0:00:49]} 30. Ra6 {[%emt 0:01:17]} (30. Bxb4 $16 {Threatens to win with Nd6.} Bxf4 31. Ke2) 30... Bc7 $14 {[%emt 0:00:31]} 31. Bxb4 {[%emt 0:03:40]} Bxf4 {[%emt 0:00:06]} 32. Ke2 {[%emt 0:00:19]} Nd8 {[%emt 0:00:52]} 33. Nxd4 {[%emt 0:06:58] Black must now prevent Be7.} Be5 {[%emt 0:00:05]} 34. Bc3 {[%emt 0:00:21][%cal Od4e6]} Kh7 {[%emt 0:00:42]} 35. Kf3 {[%emt 0:05:10]} Bxd4 {[%emt 0:00:37]} 36. Bxd4 {[%emt 0:00:01][%cal Oc6c7] c7! would now be deadly.} Nxc6 {[%emt 0:00:09]} 37. Bf6 {[%emt 0:00:08][%cal Oa6a4]} Nb4 $2 {[%emt 0:00:39][%mdl 8192] [#]} (37... Kh6 $16 {might work better.}) 38. Ra4 $1 $18 {[%emt 0:01:08]} Rc6 $2 {[%emt 0:00:17]} (38... Rc1 39. Bb2 (39. Rxb4 Rf1+ 40. Ke2 Rxf6 $16) 39... Rf1+ 40. Ke2 Rf4) 39. Bb2 {[%emt 0:00:34]} ({Not} 39. Bxh4 Rc3+ 40. Ke2 Nd5 $16) 39... Rb6 {[%emt 0:01:02]} 40. a3 {[%emt 0:00:00] Weighted Error Value: White=0.17 (very precise) /Black=0.35.  Loses game:     	---       	Black=1      Mistake:       	White=3     	Black=5      Inaccurate:     	White=2     	Black=3      OK:         	White=8     	Black=9      Best:        	White=3     	Black=4      Strong:       	White=1     	---} 1-0

[Event "Azerbaijan Men Championship 2024"]
[Site "Baku"]
[Date "2024.04.11"]
[Round "1.10"]
[White "Hamidov, Allahverdi"]
[Black "Manafov, Vugar"]
[Result "0-1"]
[ECO "E45"]
[WhiteElo "2091"]
[BlackElo "2424"]
[Annotator "TA"]
[PlyCount "72"]
[EventDate "2024.04.11"]
[EventType "swiss"]
[EventCountry "AZE"]
[SourceTitle "playchess.com"]
[Source "ChessBase"]
[SourceQuality "1"]
[TimeControl "40/5400+30:1800+30"]

{[%evp 17,72,27,27,0,0,0,0,0,0,-2,-7,-9,0,0,0,-21,-10,-20,-14,-8,-12,-47,-7,-42,-63,-45,-40,-102,-116,-108,-108,-108,-109,-109,-109,-114,-98,-114,-91,-95,-95,-92,-98,-101,-86,-103,-87,-112,-104,-108,-92,-101,-106,-108,-108,-29988,-29989]} 1. d4 {[%emt 0:00:02]} Nf6 {[%emt 0:02:25]} 2. c4 {[%emt 0:00:11]} e6 {[%emt 0:00:15]} 3. Nc3 {[%emt 0:00:30]} Bb4 {[%emt 0:00:31]} 4. e3 {[%emt 0:00:21]} b6 {[%emt 0:01:48]} 5. Nge2 {[%emt 0:00:37]} Ba6 {[%emt 0:06:38]} 6. a3 {[%emt 0:00:20]} Bxc3+ {[%emt 0:02:00]} 7. Nxc3 {[%emt 0:00:10]} d5 {[%emt 0:00:19]} 8. b3 {[%emt 0:01:49]} O-O {[%emt 0:00:57]} 9. Be2 {[%emt 0:03:51]} c5 {[%emt 0:02:54]} 10. O-O {[%emt 0:02:42]} cxd4 {[%emt 0:02:27]} 11. exd4 {[%emt 0:00:26]} dxc4 {[%emt 0:06:09]} 12. bxc4 {[%emt 0:00:27] aiming for Bf3. The position is equal.} Nc6 {[%emt 0:01:31]} 13. Be3 {[%emt 0:01:04]} Na5 {[%emt 0:01:28]} 14. c5 {[%emt 0:37:02]} Bxe2 {[%emt 0:03:30]} 15. Qxe2 {[%emt 0:00:19]} Nd5 {[%emt 0:02:01]} 16. Nb5 {[%emt 0:03:30]} Qd7 {[%emt 0:02:56]} 17. a4 {[%emt 0:07:16]} Rac8 {[%emt 0:06:09]} 18. Rac1 {[%emt 0:10:03]} Rc6 {[%emt 0:05:04]} 19. Nd6 {[%emt 0:03:09]} h6 {[%emt 0:12:27]} (19... Nb3 $5 20. Rc2 Nxe3 21. Qxe3 Nxd4 22. Qxd4 bxc5 23. Rxc5 Rxd6 $17) 20. h3 {[%emt 0:07:39]} Nb3 {[%emt 0:10:29] A dynamic duo of knights.} 21. Rc2 {[%emt 0:19:32]} Nxe3 {[%emt 0:08:08]} 22. Qxe3 {[%emt 0:00:00] [#] Black converts the advantage convincingly.} (22. fxe3 $15 bxc5 23. Ne4) 22... Nxd4 $1 $17 {[%emt 0:00:27][%mdl 512]} 23. Qxd4 {[%emt 0:00:00] Black must now prevent Nb5.} bxc5 {[%emt 0:00:05]} 24. Rxc5 {[%emt 0:00:00]} Rxd6 {[%emt 0:00:24]} 25. Qc4 {[%emt 0:00:00]} Rd4 {[%emt 0:08:03]} 26. Qb5 {[%emt 0:00:00]} Qd6 {[%emt 0:00:15]} (26... Rd8 {simplifies} 27. Qxd7 R8xd7 28. Ra5 h5) 27. Rc6 {[%emt 0:00:00]} Qf4 {[%emt 0:00:21]} 28. Ra6 {[%emt 0:00:00]} Rb8 {[%emt 0:01:13]} 29. Qc5 {[%emt 0:01:55]} Rxa4 {[%emt 0:11:12]} 30. Qxa7 {[%emt 0:01:07]} Rc4 {[%emt 0:00:19]} 31. Ra2 {[%emt 0:00:33]} Rbc8 {[%emt 0:01:08]} 32. Re2 {[%emt 0:00:53]} Rc1 {[%emt 0:01:10]} 33. Ree1 {[%emt 0:00:30]} R1c3 {[%emt 0:00:11] Black is more active.} 34. Rd1 {[%emt 0:00:30]} R8c5 {[%emt 0:01:15]} 35. Rd8+ {[%emt 0:00:41]} Kh7 {[%emt 0:00:04][%cal Oc3h3] ( -> ...Rxh3!)} 36. Rd7 $2 {[%emt 0:00:10][%mdl 8192] [#]} (36. Rd3 $17) 36... Rxh3 $3 {[%emt 0:00:38][%mdl 512] Weighted Error Value: White=0.34/Black=0.06 (flawless) .  Loses game:     	White=1     	---        Mistake:       	White=1     	---        Inaccurate:     	White=2     	Black=1      OK:         	White=10    	Black=12     Best:        	---       	Black=2      Brilliant:      	---       	Black=2} 0-1